fUSD/lending_fUSD_20260608
["ID","MTS","AMOUNT","RATE_DAILY","PERIOD"]
[424430570,1780881043000,-157.62906089,0.00019717,10]
[424430567,1780881043000,-672.29599816,0.0001968,2]
[424430568,1780881043000,-462.58344603,0.0001968,2]
[424430586,1780881043000,-151.0,0.00019961,2]
[424430578,1780881043000,-275.0,0.00019961,2]
[424430585,1780881043000,-200.0,0.00019961,2]
[424430596,1780881043000,-151.0,0.00019961,2]
[424430591,1780881043000,-174.61919141,0.00019961,2]
[424430612,1780881043000,-136.57147224,0.00019961,2]
[424430613,1780881043000,-151.0,0.00019961,2]
[424430584,1780881043000,-171.17,0.00019961,2]
[424430609,1780881043000,-51.89553853,0.00019961,2]
[424430611,1780881043000,-63.42852776,0.00019961,2]
[424430614,1780881043000,-305.02988823,0.00019961,2]
[424430608,1780881043000,-151.0,0.00019961,2]
[424430607,1780881043000,-500.0,0.00019961,2]
[424430605,1780881043000,-500.0,0.00019961,2]
[424430606,1780881043000,-160.0,0.00019961,2]
[424430601,1780881043000,-151.0,0.00019961,2]
[424430610,1780881043000,-510.12067224,0.00019961,2]
[424430602,1780881043000,-1428.38747117,0.00019961,2]
[424430599,1780881043000,-500.0,0.00019961,2]
[424430592,1780881043000,-578.20924308,0.00019961,2]
[424430597,1780881043000,-151.0,0.00019961,2]
[424430598,1780881043000,-151.0,0.00019961,2]
[424430604,1780881043000,-151.0,0.00019961,2]
[424430603,1780881043000,-209.40437684,0.00019961,2]
[424430594,1780881043000,-209.40437686,0.00019961,2]
[424430593,1780881043000,-151.0,0.00019961,2]
[424430595,1780881043000,-209.40437687,0.00019961,2]
[424430600,1780881043000,-151.0,0.00019961,2]
[424430618,1780881046000,-486.77419999,0.00017018,2]
[424430616,1780881046000,-410.44217181,0.00017018,2]
[424430617,1780881046000,-423.34359861,0.00017018,2]
[424430671,1780881058000,152.0,0.00010095,7]
[424430677,1780881191000,500.0,0.0003,120]
[424430768,1780881490000,1801.8076,0.0003,120]
[424430779,1780881816000,500.0,0.00030137,120]
[424430780,1780881838000,501.57697,0.00030137,120]
[424430786,1780882077000,7616.92861929,0.0003,120]
[424430810,1780882209000,837.98035834,0.0003013,120]
[424430811,1780882214000,172.0,0.000301,120]
[424430842,1780882231000,-150.0,0.00012044,2]
[424430841,1780882231000,-150.0,0.00012013,2]
[424430844,1780882232000,-1737.412,0.00012416,2]
[424430845,1780882232000,-23405.89755912,0.00012487,2]
[424430843,1780882232000,-1940.48,0.00012225,2]
[424430849,1780882232000,-350.57210875,0.0001257,2]
[424430852,1780882232000,-500.0,0.0001257,2]
[424430851,1780882232000,-2019.00692458,0.0001257,2]
[424430850,1780882232000,-10713.65757487,0.0001257,2]
[424430847,1780882232000,-150.0,0.00012569,2]
[424430846,1780882232000,-1865.68113612,0.0001256,2]
[424430848,1780882232000,-2149.42789125,0.0001257,2]
[424430866,1780882237000,-735.30399282,0.0001257,2]
[424430867,1780882237000,-1332.00926807,0.0001257,2]
[424430906,1780882238000,-224.38985235,0.00013488,2]
[424430909,1780882238000,-150.0,0.00013488,2]
[424430916,1780882238000,-150.0,0.00013488,2]
[424430908,1780882238000,-150.0,0.00013488,2]
[424430911,1780882238000,-150.0,0.00013488,2]
[424430913,1780882238000,-150.44031967,0.00013488,2]
[424430917,1780882238000,-150.0,0.00013488,2]
[424430919,1780882238000,-150.0,0.0001355,2]
[424430922,1780882238000,-23405.89755908,0.00013559,2]
[424430924,1780882238000,-150.0,0.00013613,2]
[424430926,1780882238000,-40644.94000301,0.00013615,2]
[424430947,1780882238000,-500.0,0.00013698,2]
[424430897,1780882238000,-40644.94000301,0.00013358,2]
[424430930,1780882238000,-255.0,0.00013662,2]
[424430945,1780882238000,-500.0,0.00013698,2]
[424430940,1780882238000,-500.0,0.00013698,2]
[424430943,1780882238000,-500.0,0.00013698,2]
[424430936,1780882238000,-493.15769984,0.00013698,2]
[424430934,1780882238000,-150.0,0.00013675,2]
[424430932,1780882238000,-150.0,0.00013675,2]
[424430949,1780882238000,-396.87484801,0.00013698,2]
[424430960,1780882238000,-224.85373906,0.00013698,2]
[424430928,1780882238000,-153.78606725,0.0001364,2]
[424430938,1780882238000,-220.94004489,0.00013698,2]
[424430895,1780882238000,-701.49,0.00013304,2]
[424430901,1780882238000,-158.68,0.00013378,2]
[424430868,1780882238000,-452553.00263637,0.0001257,2]
[424430869,1780882238000,-3431.39827791,0.0001257,2]
[424430871,1780882238000,-1500000.0,0.0001257,2]
[424430873,1780882238000,-1595.84,0.00012626,2]
[424430872,1780882238000,-40644.94000302,0.00012587,2]
[424430870,1780882238000,-29784.29832538,0.0001257,2]
[424430874,1780882238000,-150.0,0.00012669,2]
[424430877,1780882238000,-23405.89755908,0.00012755,2]
[424430875,1780882238000,-2000.0,0.00012669,2]
[424430878,1780882238000,-1200.0,0.000128,4]
[424430879,1780882238000,-2000.0,0.000128,2]
[424430899,1780882238000,-228.4,0.00013378,2]
[424430876,1780882238000,-994.25820216,0.00012687,2]
[424430886,1780882238000,-23405.89755908,0.00013023,2]
[424430883,1780882238000,-264.51,0.00012904,2]
[424430882,1780882238000,-2400.0,0.000129,4]
[424430881,1780882238000,-331.32069558,0.00012887,2]
[424430884,1780882238000,-678.27,0.00012987,2]
[424430887,1780882238000,-40644.94000301,0.00013101,2]
[424430889,1780882238000,-393.84,0.0001326,2]
[424430885,1780882238000,-1470.33,0.00012987,2]
[424430893,1780882238000,-23405.89755908,0.00013291,2]
[424430891,1780882238000,-720.55,0.0001326,2]
[424430951,1780882238000,-500.0,0.00013698,2]
[424430880,1780882238000,-40644.94000301,0.00012844,2]
[424430964,1780882238000,-500.0,0.00013698,2]
[424430903,1780882238000,-153.77004869,0.00013445,2]
[424430968,1780882238000,-500.0,0.00013698,2]
[424431020,1780882238000,-500.0,0.00013698,2]
[424431003,1780882238000,-500.0,0.00013698,2]
[424431024,1780882238000,-500.0,0.00013698,2]
[424431028,1780882238000,-500.0,0.00013698,2]
[424431034,1780882238000,-168.68,0.00013699,2]
[424431030,1780882238000,-166.66,0.00013699,2]
[424431026,1780882238000,-500.0,0.00013698,2]
[424431032,1780882238000,-200.0,0.00013699,2]
[424431022,1780882238000,-500.0,0.00013698,2]
[424431036,1780882238000,-843.4,0.00013699,2]
[424431038,1780882238000,-1096.31,0.00013699,2]
[424431042,1780882238000,-29999.99,0.00013699,2]
[424431045,1780882238000,-9999.99,0.00013699,2]
[424431047,1780882238000,-1000.0,0.00013699,2]
[424431057,1780882238000,-160.0,0.00013765,2]
[424431051,1780882238000,-1000.0,0.00013699,15]
[424431063,1780882238000,-150.0,0.000138,2]
[424431061,1780882238000,-500.0,0.00013799,2]
[424431059,1780882238000,-994.25820216,0.00013794,2]
[424431049,1780882238000,-1000.0,0.00013699,15]
[424431053,1780882238000,-3600.0,0.000137,5]
[424431055,1780882238000,-150.0,0.00013737,2]
[424430962,1780882238000,-500.0,0.00013698,2]
[424431005,1780882238000,-500.0,0.00013698,2]
[424431007,1780882238000,-500.0,0.00013698,2]
[424431040,1780882238000,-958.65,0.00013699,2]
[424431001,1780882238000,-500.0,0.00013698,2]
[424430958,1780882238000,-176.98636435,0.00013698,2]
[424431018,1780882238000,-500.0,0.00013698,2]
[424430966,1780882238000,-500.0,0.00013698,2]
[424430955,1780882238000,-150.56478136,0.00013698,2]
[424430953,1780882238000,-322.28290153,0.00013698,2]
[424430967,1780882238000,-500.0,0.00013698,2]
[424430970,1780882238000,-500.0,0.00013698,2]
[424430972,1780882238000,-500.0,0.00013698,2]
[424430974,1780882238000,-500.0,0.00013698,2]
[424430986,1780882238000,-500.0,0.00013698,2]
[424430984,1780882238000,-500.0,0.00013698,2]
[424430980,1780882238000,-500.0,0.00013698,2]
[424430982,1780882238000,-500.0,0.00013698,2]
[424430988,1780882238000,-500.0,0.00013698,2]
[424431016,1780882238000,-500.0,0.00013698,2]
[424431011,1780882238000,-500.0,0.00013698,2]
[424431009,1780882238000,-309.2506608,0.00013698,2]
[424430999,1780882238000,-500.0,0.00013698,2]
[424430995,1780882238000,-457.12873569,0.00013698,2]
[424431013,1780882238000,-500.0,0.00013698,2]
[424430997,1780882238000,-500.0,0.00013698,2]
[424430978,1780882238000,-500.0,0.00013698,2]
[424430976,1780882238000,-500.0,0.00013698,2]
[424430990,1780882238000,-500.0,0.00013698,2]
[424430993,1780882238000,-500.0,0.00013698,2]
[424431153,1780882239000,-40644.94000301,0.00014129,2]
[424431149,1780882239000,-166.66,0.0001411,2]
[424431128,1780882239000,-500.0,0.00013992,2]
[424431134,1780882239000,-323.69679507,0.00013992,2]
[424431126,1780882239000,-500.0,0.00013992,2]
[424431130,1780882239000,-500.0,0.00013992,2]
[424431132,1780882239000,-500.0,0.00013992,2]
[424431145,1780882239000,-10000.0,0.00014066,2]
[424431140,1780882239000,-150.0,0.0001405,2]
[424431143,1780882239000,-150.0,0.0001405,2]
[424431124,1780882239000,-519.01471804,0.00013992,2]
[424431147,1780882239000,-23405.89755908,0.00014096,2]
[424431151,1780882239000,-150.0,0.00014112,2]
[424431181,1780882239000,-166.66,0.00014247,2]
[424431157,1780882239000,-6414.0,0.00014137,2]
[424431159,1780882239000,-500.0,0.00014165,2]
[424431166,1780882239000,-2000.0,0.00014167,2]
[424431168,1780882239000,-150.0,0.00014175,2]
[424431164,1780882239000,-29014.4457,0.00014167,2]
[424431170,1780882239000,-1570.28,0.000142,2]
[424431161,1780882239000,-500.0,0.00014165,2]
[424431172,1780882239000,-1595.84,0.00014204,2]
[424431178,1780882239000,-150.0,0.00014237,2]
[424431177,1780882239000,-150.0,0.00014237,2]
[424431185,1780882239000,-500.0,0.00014266,2]
[424431136,1780882239000,-250.0,0.00014,2]
[424431155,1780882239000,-5449.0,0.00014137,2]
[424431139,1780882239000,-153.75031479,0.00014013,2]
[424431070,1780882239000,-23405.89755908,0.00013828,2]
[424431120,1780882239000,-208.04173895,0.00013992,2]
[424431195,1780882239000,-500.0,0.00014266,2]
[424431065,1780882239000,-1000.0,0.000138,2]
[424431068,1780882239000,-4800.0,0.000138,5]
[424431072,1780882239000,-166.66,0.00013836,2]
[424431076,1780882239000,-150.0,0.00013862,2]
[424431074,1780882239000,-150.0,0.00013862,2]
[424431078,1780882239000,-40644.94000301,0.00013872,2]
[424431092,1780882239000,-14270.34142765,0.0001399,2]
[424431084,1780882239000,-150.0,0.00013922,2]
[424431080,1780882239000,-324.68583182,0.00013892,2]
[424431082,1780882239000,-6000.0,0.000139,5]
[424431090,1780882239000,-150.0,0.00013987,2]
[424431094,1780882239000,-500.0,0.00013992,2]
[424431096,1780882239000,-500.0,0.00013992,2]
[424431086,1780882239000,-150.0,0.00013925,2]
[424431088,1780882239000,-166.66,0.00013973,2]
[424431098,1780882239000,-500.0,0.00013992,2]
[424431100,1780882239000,-500.0,0.00013992,2]
[424431110,1780882239000,-500.0,0.00013992,2]
[424431112,1780882239000,-544.89270544,0.00013992,2]
[424431104,1780882239000,-500.0,0.00013992,2]
[424431116,1780882239000,-150.0,0.00013992,2]
[424431102,1780882239000,-500.0,0.00013992,2]
[424431114,1780882239000,-150.0,0.00013992,2]
[424431108,1780882239000,-500.0,0.00013992,2]
[424431118,1780882239000,-150.0,0.00013992,2]
[424431106,1780882239000,-500.0,0.00013992,2]
[424431122,1780882239000,-500.0,0.00013992,2]
[424431197,1780882239000,-500.0,0.00014298,2]
[424431183,1780882239000,-500.0,0.00014266,2]
[424431175,1780882239000,-150.0,0.00014237,2]
[424431268,1780882239000,-23405.89755908,0.00014632,2]
[424431254,1780882239000,-170.566083,0.00014503,2]
[424431252,1780882239000,-160.0,0.00014503,2]
[424431256,1780882239000,-181.132167,0.00014503,2]
[424431272,1780882239000,-40644.94000301,0.00014643,2]
[424431274,1780882239000,-4598.81797824,0.00014652,2]
[424431258,1780882239000,-150.0,0.00014549,2]
[424431261,1780882239000,-1200.0,0.000146,5]
[424431276,1780882239000,-150.0,0.00014674,2]
[424431281,1780882239000,-252.149529,0.000147,2]
[424431283,1780882239000,-185.12167,0.000147,2]
[424431279,1780882239000,-1200.0,0.000147,5]
[424431285,1780882239000,-500.0,0.00014725,2]
[424431287,1780882239000,-500.0,0.00014725,2]
[424431289,1780882239000,-500.0,0.00014725,2]
[424431299,1780882239000,-500.0,0.00014725,2]
[424431294,1780882239000,-500.0,0.00014725,2]
[424431291,1780882239000,-500.0,0.00014725,2]
[424431297,1780882239000,-500.0,0.00014725,2]
[424431301,1780882239000,-500.0,0.00014725,2]
[424431303,1780882239000,-500.0,0.00014725,2]
[424431314,1780882239000,-500.0,0.00014725,2]
[424431316,1780882239000,-500.0,0.00014725,2]
[424431307,1780882239000,-500.0,0.00014725,2]
[424431310,1780882239000,-500.0,0.00014725,2]
[424431318,1780882239000,-426.8656054,0.00014725,2]
[424431191,1780882239000,-500.0,0.00014266,2]
[424431270,1780882239000,-616.30777431,0.00014642,2]
[424431265,1780882239000,-150.0,0.00014612,2]
[424431312,1780882239000,-500.0,0.00014725,2]
[424431234,1780882239000,-324.6858318,0.00014396,2]
[424431193,1780882239000,-500.0,0.00014266,2]
[424431189,1780882239000,-501.10603348,0.00014266,2]
[424431305,1780882239000,-500.0,0.00014725,2]
[424431187,1780882239000,-500.0,0.00014266,2]
[424431199,1780882239000,-500.0,0.00014298,2]
[424431201,1780882239000,-500.0,0.00014298,2]
[424431210,1780882239000,-500.0,0.00014298,2]
[424431212,1780882239000,-500.0,0.00014298,2]
[424431204,1780882239000,-500.0,0.00014298,2]
[424431214,1780882239000,-500.0,0.00014298,2]
[424431219,1780882239000,-500.0,0.00014298,2]
[424431208,1780882239000,-500.0,0.00014298,2]
[424431206,1780882239000,-500.0,0.00014298,2]
[424431221,1780882239000,-500.0,0.00014298,2]
[424431223,1780882239000,-150.0,0.00014299,2]
[424431231,1780882239000,-40644.94000301,0.00014386,2]
[424431216,1780882239000,-500.0,0.00014298,2]
[424431250,1780882239000,-150.0,0.00014487,2]
[424431246,1780882239000,-195.606908,0.00014431,2]
[424431248,1780882239000,-246.767173,0.00014431,2]
[424431229,1780882239000,-166.66,0.00014384,2]
[424431227,1780882239000,-23405.89755908,0.00014364,2]
[424431263,1780882239000,-150.0,0.00014612,2]
[424431242,1780882239000,-318.098309,0.00014431,2]
[424431225,1780882239000,-150.0,0.00014362,2]
[424431240,1780882239000,-150.0,0.00014424,2]
[424431238,1780882239000,-150.0,0.00014424,2]
[424431236,1780882239000,-4598.81797826,0.00014404,2]
[424431244,1780882239000,-233.661564,0.00014431,2]
[424431404,1780882240000,-500.0,0.00014725,2]
[424431397,1780882240000,-1035.0,0.00014725,2]
[424431401,1780882240000,-500.0,0.00014725,2]
[424431390,1780882240000,-1035.0,0.00014725,2]
[424431394,1780882240000,-621.0,0.00014725,2]
[424431393,1780882240000,-621.0,0.00014725,2]
[424431395,1780882240000,-1035.0,0.00014725,2]
[424431389,1780882240000,-621.0,0.00014725,2]
[424431385,1780882240000,-621.0,0.00014725,2]
[424431399,1780882240000,-500.0,0.00014725,2]
[424431396,1780882240000,-621.0,0.00014725,2]
[424431386,1780882240000,-621.0,0.00014725,2]
[424431433,1780882240000,-500.0,0.00014725,2]
[424431408,1780882240000,-621.0,0.00014725,2]
[424431416,1780882240000,-500.0,0.00014725,2]
[424431421,1780882240000,-500.0,0.00014725,2]
[424431425,1780882240000,-500.0,0.00014725,2]
[424431419,1780882240000,-1035.0,0.00014725,2]
[424431423,1780882240000,-500.0,0.00014725,2]
[424431410,1780882240000,-500.0,0.00014725,2]
[424431414,1780882240000,-500.0,0.00014725,2]
[424431412,1780882240000,-500.0,0.00014725,2]
[424431427,1780882240000,-500.0,0.00014725,2]
[424431431,1780882240000,-621.0,0.00014725,2]
[424431429,1780882240000,-500.0,0.00014725,2]
[424431382,1780882240000,-621.0,0.00014725,2]
[424431406,1780882240000,-500.0,0.00014725,2]
[424431365,1780882240000,-1035.0,0.00014725,2]
[424431342,1780882240000,-1035.0,0.00014725,2]
[424431363,1780882240000,-621.0,0.00014725,2]
[424431444,1780882240000,-500.0,0.00014725,2]
[424431323,1780882240000,-1035.0,0.00014725,2]
[424431320,1780882240000,-1035.0,0.00014725,2]
[424431324,1780882240000,-1035.0,0.00014725,2]
[424431327,1780882240000,-1035.0,0.00014725,2]
[424431328,1780882240000,-621.0,0.00014725,2]
[424431330,1780882240000,-1035.0,0.00014725,2]
[424431344,1780882240000,-621.0,0.00014725,2]
[424431347,1780882240000,-1035.0,0.00014725,2]
[424431334,1780882240000,-1035.0,0.00014725,2]
[424431340,1780882240000,-621.0,0.00014725,2]
[424431338,1780882240000,-1035.0,0.00014725,2]
[424431367,1780882240000,-621.0,0.00014725,2]
[424431351,1780882240000,-1035.0,0.00014725,2]
[424431349,1780882240000,-621.0,0.00014725,2]
[424431353,1780882240000,-621.0,0.00014725,2]
[424431355,1780882240000,-1035.0,0.00014725,2]
[424431357,1780882240000,-621.0,0.00014725,2]
[424431361,1780882240000,-1035.0,0.00014725,2]
[424431378,1780882240000,-621.0,0.00014725,2]
[424431369,1780882240000,-1035.0,0.00014725,2]
[424431374,1780882240000,-1035.0,0.00014725,2]
[424431380,1780882240000,-1035.0,0.00014725,2]
[424431359,1780882240000,-1035.0,0.00014725,2]
[424431371,1780882240000,-621.0,0.00014725,2]
[424431376,1780882240000,-621.0,0.00014725,2]
[424431336,1780882240000,-621.0,0.00014725,2]
[424431435,1780882240000,-500.0,0.00014725,2]
[424431332,1780882240000,-621.0,0.00014725,2]
[424431437,1780882240000,-353.67249188,0.00014725,2]
[424431511,1780882240000,-615.0,0.00014725,2]
[424431517,1780882240000,-500.0,0.00014725,2]
[424431509,1780882240000,-1053.0953843,0.00014725,2]
[424431515,1780882240000,-615.0,0.00014725,2]
[424431528,1780882240000,-529.40521218,0.00014725,2]
[424431521,1780882240000,-500.0,0.00014725,2]
[424431524,1780882240000,-500.0,0.00014725,2]
[424431526,1780882240000,-500.0,0.00014725,2]
[424431519,1780882240000,-615.0,0.00014725,2]
[424431531,1780882240000,-615.0,0.00014725,2]
[424431547,1780882240000,-500.0,0.00014725,2]
[424431545,1780882240000,-500.0,0.00014725,2]
[424431513,1780882240000,-615.0,0.00014725,2]
[424431568,1780882240000,-615.0,0.00014725,2]
[424431552,1780882240000,-615.0,0.00014725,2]
[424431549,1780882240000,-500.0,0.00014725,2]
[424431540,1780882240000,-150.0,0.00014725,2]
[424431556,1780882240000,-500.0,0.00014725,2]
[424431538,1780882240000,-500.0,0.00014725,2]
[424431542,1780882240000,-198.75284785,0.00014725,2]
[424431554,1780882240000,-500.0,0.00014725,2]
[424431559,1780882240000,-500.0,0.00014725,2]
[424431566,1780882240000,-615.0,0.00014725,2]
[424431563,1780882240000,-615.0,0.00014725,2]
[424431561,1780882240000,-396.94383744,0.00014725,2]
[424431450,1780882240000,-500.0,0.00014725,2]
[424431535,1780882240000,-500.0,0.00014725,2]
[424431507,1780882240000,-500.93003445,0.00014725,2]
[424431533,1780882240000,-150.0,0.00014725,2]
[424431502,1780882240000,-500.0,0.00014725,2]
[424431446,1780882240000,-500.0,0.00014725,2]
[424431491,1780882240000,-500.0,0.00014725,2]
[424431452,1780882240000,-500.0,0.00014725,2]
[424431448,1780882240000,-500.0,0.00014725,2]
[424431442,1780882240000,-621.0,0.00014725,2]
[424431454,1780882240000,-500.0,0.00014725,2]
[424431440,1780882240000,-1035.0,0.00014725,2]
[424431456,1780882240000,-500.0,0.00014725,2]
[424431463,1780882240000,-500.0,0.00014725,2]
[424431465,1780882240000,-615.0,0.00014725,2]
[424431468,1780882240000,-500.0,0.00014725,2]
[424431470,1780882240000,-615.0,0.00014725,2]
[424431459,1780882240000,-1035.0,0.00014725,2]
[424431461,1780882240000,-615.0,0.00014725,2]
[424431498,1780882240000,-615.0,0.00014725,2]
[424431481,1780882240000,-615.0,0.00014725,2]
[424431483,1780882240000,-615.0,0.00014725,2]
[424431474,1780882240000,-500.0,0.00014725,2]
[424431472,1780882240000,-631.14450519,0.00014725,2]
[424431479,1780882240000,-615.0,0.00014725,2]
[424431485,1780882240000,-615.0,0.00014725,2]
[424431496,1780882240000,-500.0,0.00014725,2]
[424431489,1780882240000,-615.0,0.00014725,2]
[424431500,1780882240000,-615.0,0.00014725,2]
[424431505,1780882240000,-615.0,0.00014725,2]
[424431493,1780882240000,-615.0,0.00014725,2]
[424431476,1780882240000,-615.0,0.00014725,2]
[424431487,1780882240000,-500.0,0.00014725,2]
[424431616,1780882241000,-193.89735333,0.00014726,2]
[424431613,1780882241000,-150.0,0.00014726,2]
[424431623,1780882241000,-500.0,0.00014726,2]
[424431609,1780882241000,-150.0,0.00014726,2]
[424431611,1780882241000,-500.0,0.00014726,2]
[424431619,1780882241000,-500.0,0.00014726,2]
[424431622,1780882241000,-500.0,0.00014726,2]
[424431618,1780882241000,-500.0,0.00014726,2]
[424431620,1780882241000,-500.0,0.00014726,2]
[424431627,1780882241000,-150.0,0.00014737,2]
[424431629,1780882241000,-301.204359,0.00014773,2]
[424431625,1780882241000,-466.94856175,0.00014726,2]
[424431607,1780882241000,-500.0,0.00014726,2]
[424431617,1780882241000,-500.0,0.00014726,2]
[424431603,1780882241000,-500.0,0.00014726,2]
[424431573,1780882241000,-629.6433341,0.00014725,2]
[424431599,1780882241000,-500.0,0.00014726,2]
[424431631,1780882241000,-150.0,0.00014799,2]
[424431570,1780882241000,-615.0,0.00014725,2]
[424431577,1780882241000,-500.0,0.00014726,2]
[424431575,1780882241000,-500.0,0.00014726,2]
[424431579,1780882241000,-500.0,0.00014726,2]
[424431581,1780882241000,-500.0,0.00014726,2]
[424431597,1780882241000,-500.0,0.00014726,2]
[424431583,1780882241000,-500.0,0.00014726,2]
[424431590,1780882241000,-500.0,0.00014726,2]
[424431605,1780882241000,-500.0,0.00014726,2]
[424431586,1780882241000,-500.0,0.00014726,2]
[424431592,1780882241000,-500.0,0.00014726,2]
[424431594,1780882241000,-500.0,0.00014726,2]
[424431601,1780882241000,-500.0,0.00014726,2]
[424431588,1780882241000,-500.0,0.00014726,2]
[424431635,1780882241000,-1200.0,0.000148,5]
[424431615,1780882241000,-500.0,0.00014726,2]
[424431633,1780882241000,-150.0,0.00014799,2]
[424431663,1780882241000,-242.9366496,0.00014986,2]
[424431681,1780882241000,-300.0,0.00014999,2]
[424431677,1780882241000,-300.0,0.00014999,2]
[424431679,1780882241000,-666.0,0.00014999,2]
[424431683,1780882241000,-666.0,0.00014999,2]
[424431697,1780882241000,-950.91949366,0.00015,2]
[424431665,1780882241000,-150.0,0.00014986,2]
[424431691,1780882241000,-13447048.26814059,0.00015,2]
[424431685,1780882241000,-300.0,0.00014999,2]
[424431716,1780882241000,-3946.60504544,0.00015,2]
[424431713,1780882241000,-1126.61177538,0.00015,2]
[424431718,1780882241000,-3196.5,0.00015,2]
[424431709,1780882241000,-2441.837544,0.00012506,2]
[424431712,1780882241000,-212.10068062,0.00013892,2]
[424431689,1780882241000,-6905.47351726,0.00015,2]
[424431659,1780882241000,-237.29286515,0.00014986,2]
[424431687,1780882241000,-8516.28936409,0.00015,2]
[424431671,1780882241000,-1865.68113612,0.0001499,2]
[424431661,1780882241000,-150.0,0.00014986,2]
[424431639,1780882241000,-150.0,0.00014861,2]
[424431647,1780882241000,-1200.0,0.000149,5]
[424431641,1780882241000,-170.07468546,0.00014877,2]
[424431643,1780882241000,-25000.0,0.000149,3]
[424431651,1780882241000,-4598.81797824,0.000149,2]
[424431645,1780882241000,-994.25820216,0.000149,2]
[424431637,1780882241000,-433.0,0.00014856,2]
[424431649,1780882241000,-40644.94000301,0.000149,2]
[424431653,1780882241000,-324.6858318,0.000149,2]
[424431655,1780882241000,-23405.89755908,0.000149,2]
[424431657,1780882241000,-150.0,0.00014924,2]
[424431669,1780882241000,-150.0,0.00014986,2]
[424431667,1780882241000,-151.0,0.00014986,2]
[424431675,1780882241000,-2000.0,0.00014999,2]
[424431673,1780882241000,-1865.68113612,0.0001499,2]
[424431809,1780882242000,-2724.76221445,0.00015,2]
[424431810,1780882242000,-630.8,0.00015,2]
[424431813,1780882242000,-364.30893598,0.00015,2]
[424431814,1780882242000,-6595.61397315,0.00015,2]
[424431812,1780882242000,-2397.43279473,0.00015,2]
[424431815,1780882242000,-4476.14989768,0.00015,2]
[424431816,1780882242000,-1645.14460623,0.00015,2]
[424431811,1780882242000,-81355.5607911,0.00015,2]
[424431817,1780882243000,-10537.21930003,0.00015,2]
[424431824,1780882245000,-19043.28749878,0.00015,2]
[424431826,1780882246000,-630.87143665,0.00015,2]
[424431827,1780882269000,719.40366022,0.0003013,120]
[424431831,1780882480000,158.07126771,0.00030136,120]
[424431832,1780882533000,450.49,0.00027017,120]
[424431833,1780882534000,450.49,0.00027017,120]
[424431834,1780882535000,450.49,0.00027017,120]
[424431835,1780882536000,450.49,0.00027017,120]
[424431836,1780882537000,450.49,0.00027017,120]
[424431837,1780882538000,450.49,0.00027017,120]
[424431838,1780882539000,450.49,0.00027017,120]
[424431840,1780882541000,450.49,0.00027017,120]
[424431839,1780882541000,450.49,0.00027017,120]
[424431841,1780882542000,450.47442977,0.00027017,120]
[424431842,1780882558000,1500.0,0.00030136,120]
[424431844,1780882767000,500.0,0.00030137,120]
[424431845,1780882795000,500.0,0.00030137,120]
[424431846,1780882805000,500.0,0.00030137,120]
[424431847,1780882836000,1650.1,0.00029452,120]
[424431848,1780882842000,500.0,0.00030137,120]
[424431849,1780882912000,546.01,0.0003013,120]